bitfinex-derivatives/quotes_BNBF0:USTF0_20251027
["timestamp","ask_amount","ask_price","bid_price","bid_amount"]
[1761554318389,2.9712091,1159.1,1156.8,1.186]
[1761554318587,2.1222922,1158.8,1156.8,1.186]
[1761554321088,2.1222922,1159.2,1156.8,1.186]
[1761554321586,2.1222922,1158.9,1156.8,1.186]
[1761554326288,2.9712091,1159.4,1156.8,1.186]
[1761554326289,2.1222922,1158.6,1156.8,1.186]
[1761554326889,2.1222922,1158.7,1156.8,1.186]
[1761554327790,2.1222922,1159.1,1156.8,1.186]
[1761554329092,2.1222922,1158.6,1156.8,1.186]
[1761554329699,2.1222922,1159.1,1156.8,1.186]
[1761554330095,2.1222922,1159.4,1156.8,1.186]
[1761554330496,2.9712091,1160.0,1156.8,1.186]
[1761554330798,2.1222922,1160.1,1156.8,1.186]
[1761554330999,2.1222922,1160.0,1156.8,1.186]
[1761554331704,2.1222922,1160.1,1156.8,1.186]
[1761554332201,2.1222922,1159.1,1156.8,1.186]
[1761554332603,2.1222922,1158.7,1156.8,1.186]
[1761554333305,2.1222922,1158.9,1156.8,1.186]
[1761554334206,2.1222922,1158.8,1156.9,1.38]
[1761554334705,2.1222922,1158.9,1156.9,1.38]
[1761554335805,2.1222922,1159.0,1156.9,1.38]
[1761554341708,2.1222922,1158.7,1156.9,1.38]
[1761554343008,2.1222922,1158.6,1156.9,1.38]
[1761554343806,2.1222922,1158.4,1156.9,1.38]
[1761554346306,2.9712091,1158.7,1156.9,1.38]
[1761554346509,2.1222922,1158.9,1156.9,1.38]
[1761554346706,2.1222922,1158.7,1156.9,1.38]
[1761554347306,2.1222922,1158.5,1156.9,1.38]
[1761554347805,2.1222922,1158.7,1156.9,1.38]
[1761554350011,2.1222922,1159.0,1156.9,1.38]
[1761554351313,2.1222922,1158.9,1156.9,1.38]
[1761554355517,2.1222922,1159.2,1156.9,1.38]
[1761554356015,2.1222922,1159.3,1156.9,1.38]
[1761554356618,2.1222922,1159.2,1156.9,1.38]
[1761554360121,2.9712091,1159.0,1156.9,1.38]
[1761554360321,2.1222922,1158.6,1156.9,1.38]
[1761554361218,2.1222922,1158.9,1156.9,1.38]
[1761554362819,2.9712091,1159.3,1156.9,1.38]
[1761554363022,2.9712091,1159.3,1157.0,0.56510652]
[1761554363322,0.15029963,1159.4,1156.9,1.38]
[1761554363519,0.15029963,1159.4,1157.0,0.56506388]
[1761554363820,0.15029963,1159.4,1156.9,1.38]
[1761554364018,0.15029963,1159.4,1157.0,0.56508086]
[1761554364323,0.15029963,1159.4,1156.9,1.38]
[1761554364524,0.15029963,1159.4,1157.0,0.56506564]
[1761554364721,0.15029963,1159.4,1156.9,1.38]
[1761554364924,0.15029963,1159.4,1157.0,0.56506604]
[1761554365122,0.15029963,1159.4,1156.9,1.38]
[1761554365422,0.15029963,1159.4,1157.0,0.56504974]
[1761554365625,0.15029963,1159.4,1156.9,1.38]
[1761554365821,0.15029963,1159.4,1157.0,0.56506228]
[1761554366022,0.15029963,1159.4,1156.9,1.38]
[1761554366226,0.15029963,1159.4,1157.0,0.56506228]
[1761554366426,0.15029963,1159.4,1156.9,1.38]
[1761554366626,0.15029963,1159.4,1157.0,0.56504997]
[1761554366825,0.15029963,1159.4,1156.9,1.38]
[1761554367024,0.15029963,1159.4,1157.0,0.56504937]
[1761554367321,0.15029963,1159.4,1156.9,1.38]
[1761554367526,0.15029963,1159.4,1157.0,0.56503599]
[1761554367822,0.15029963,1159.4,1156.9,1.38]
[1761554368125,0.15029963,1159.4,1157.0,0.56503619]
[1761554368325,0.15029963,1159.4,1156.9,1.38]
[1761554368526,0.15029963,1159.4,1157.0,0.56502197]
[1761554368828,0.15029963,1159.4,1156.9,1.38]
[1761554369023,0.15029963,1159.4,1157.0,0.56500971]
[1761554369226,0.15029963,1159.4,1156.9,1.38]
[1761554371025,0.15029963,1159.4,1157.0,1.537]
[1761554372326,2.27259183,1159.4,1157.0,1.537]
[1761554374332,2.1222922,1159.1,1157.0,1.537]
[1761554375332,2.1222922,1158.6,1157.0,1.537]
[1761554377434,2.9712091,1159.0,1157.0,1.537]
[1761554378029,2.1222922,1159.1,1157.0,1.537]
[1761554379132,2.1222922,1158.8,1157.0,1.537]
[1761554380731,2.1222922,1158.6,1157.0,1.537]
[1761554381729,2.1222922,1158.9,1157.0,1.537]
[1761554383031,2.1222922,1158.9,1157.1,1.383]
[1761554385337,2.1222922,1158.8,1157.1,1.383]
[1761554385834,2.9712091,1159.3,1157.1,1.383]
[1761554386133,0.15029963,1159.4,1157.1,1.383]
[1761554388336,2.27259183,1159.4,1157.1,1.383]
[1761554388939,2.1222922,1159.2,1157.1,1.383]
[1761554390436,2.1222922,1159.1,1157.1,1.383]
[1761554391434,2.1222922,1158.9,1157.1,1.383]
[1761554391839,2.1222922,1158.5,1157.1,1.383]
[1761554397139,2.1222922,1158.5,1157.0,1.537]
[1761554399940,2.1222922,1158.7,1157.0,1.537]
[1761554400643,2.1222922,1158.7,1157.1,1.384]
[1761554401140,2.1222922,1158.8,1157.1,1.384]
[1761554401640,2.1222922,1158.7,1157.1,1.384]
[1761554402044,2.1222922,1158.8,1157.1,1.384]
[1761554403045,2.1222922,1158.7,1157.1,1.384]
[1761554403644,2.1222922,1158.9,1157.1,1.384]
[1761554404646,2.1222922,1158.8,1157.1,1.384]
[1761554407246,2.9712091,1159.3,1157.1,1.384]
[1761554407850,2.1222922,1159.4,1157.1,1.384]
[1761554408449,2.1222922,1158.8,1157.1,1.384]
[1761554409348,2.1222922,1158.7,1157.1,1.384]
[1761554409849,2.1222922,1158.4,1157.1,1.384]
[1761554410947,2.1222922,1158.5,1157.1,1.384]
[1761554411349,2.1222922,1158.7,1157.1,1.384]
[1761554417657,2.1222922,1158.8,1157.1,1.384]
[1761554418153,0.15030547,1159.5,1157.1,1.384]
[1761554418154,2.1222922,1158.9,1157.1,1.384]
[1761554419655,2.1222922,1158.8,1157.1,1.384]
[1761554420160,2.1222922,1158.7,1157.1,1.384]
[1761554421261,2.1222922,1158.6,1157.1,1.384]
[1761554423359,2.1222922,1158.7,1157.1,1.384]
[1761554425960,2.1222922,1158.6,1157.1,1.384]
[1761554426463,2.1222922,1158.5,1157.1,1.384]
[1761554427969,2.1222922,1158.6,1157.1,1.384]
[1761554428968,2.1222922,1158.7,1157.1,1.384]
[1761554431669,2.1222922,1158.6,1157.1,1.384]
[1761554435773,2.1222922,1158.5,1157.1,1.384]
[1761554437472,2.1222922,1158.7,1157.1,1.384]
[1761554438375,2.1222922,1158.9,1157.1,1.384]
[1761554439476,2.1222922,1158.8,1157.1,1.384]
[1761554441178,2.1222922,1158.9,1157.1,1.384]
[1761554441677,2.1222922,1158.7,1157.1,1.384]
[1761554442082,2.1222922,1158.8,1157.1,1.384]
[1761554444683,2.9712091,1159.4,1157.1,1.384]
[1761554445180,0.15030547,1159.5,1157.1,1.384]
[1761554450282,2.1222922,1159.4,1157.1,1.384]
[1761554450984,2.1222922,1159.0,1157.1,1.384]
[1761554451381,2.1222922,1159.1,1157.1,1.384]
[1761554453081,2.1222922,1159.0,1157.1,1.384]
[1761554453584,2.1222922,1158.9,1157.1,1.384]
[1761554457687,2.1222922,1158.8,1157.1,1.384]
[1761554459187,2.1222922,1158.9,1157.1,1.384]
[1761554459689,2.1222922,1158.8,1157.1,1.384]
[1761554460492,2.9712091,1159.4,1157.1,1.384]
[1761554460691,2.9712091,1159.4,1157.0,1.718]
[1761554460888,0.15030547,1159.5,1157.0,1.718]
[1761554462389,2.1222922,1158.9,1157.0,1.718]
[1761554463092,2.27259767,1159.5,1157.0,1.718]
[1761554463494,0.15030547,1159.5,1157.1,1.245]
[1761554465197,2.1222922,1158.2,1157.1,1.245]
[1761554465695,2.1222922,1158.3,1157.1,1.245]
[1761554466196,2.1222922,1158.4,1157.1,1.245]
[1761554467295,2.1222922,1158.3,1157.1,1.245]
[1761554467895,2.1222922,1158.1,1157.1,1.245]
[1761554469605,2.1222922,1158.1,1157.1,2.493]
[1761554471506,2.1222922,1158.2,1157.1,2.493]
[1761554473907,2.1222922,1158.3,1157.1,2.493]
[1761554475412,2.9712091,1158.7,1157.1,2.493]
[1761554475908,0.15030547,1159.5,1157.1,2.493]
[1761554479418,2.27259767,1159.5,1157.1,2.493]
[1761554482215,0.15030547,1159.5,1157.1,2.493]
[1761554483515,2.27259767,1159.5,1157.1,2.493]
[1761554487620,2.1222922,1159.4,1157.1,1.248]
[1761554488820,2.1222922,1159.3,1157.1,1.248]
[1761554491023,2.1222922,1159.0,1157.2,1.223]
[1761554491422,2.1222922,1158.6,1157.2,1.223]
[1761554491923,2.1222922,1158.2,1157.2,1.223]
[1761554492624,2.1222922,1158.2,1157.2,0.26107954]
[1761554492924,2.1222922,1158.0,1157.2,0.26107954]
[1761554494021,2.1222922,1157.9,1157.2,0.26107954]
[1761554495022,2.1222922,1158.1,1157.2,0.26107954]
[1761554496023,2.1222922,1158.2,1157.2,0.26107954]
[1761554497123,2.1222922,1158.3,1157.2,0.26107954]
[1761554498728,2.1222922,1158.4,1157.2,0.26107954]
[1761554501730,5.0935013,1158.8,1157.2,0.26107954]
[1761554502329,2.1222922,1158.8,1157.2,0.26107954]
[1761554503330,2.1222922,1159.4,1157.2,0.26107954]
[1761554506125,0.15030547,1159.5,1157.2,0.26107954]
[1761554507630,0.15030547,1159.5,1157.3,1.818]
[1761554513630,2.1222922,1159.8,1157.3,1.818]
[1761554513834,2.1222922,1159.2,1157.3,1.818]
[1761554515830,2.1222922,1159.1,1157.3,1.818]
[1761554516334,2.1222922,1159.0,1157.3,1.818]
[1761554517532,2.1222922,1159.1,1157.3,1.818]
[1761554517936,2.1222922,1159.0,1157.3,1.818]
[1761554518433,2.9712091,1159.3,1157.3,1.818]
[1761554518934,0.15024836,1159.7,1157.3,1.818]
[1761554521036,2.1222922,1159.9,1157.3,1.818]
[1761554521437,0.15023474,1159.9,1157.3,1.818]
[1761554530443,2.1222922,1159.7,1157.3,1.818]
[1761554531441,2.1222922,1159.5,1157.3,1.818]
[1761554533347,2.1222922,1159.4,1157.3,1.818]
[1761554533647,2.1222922,1159.4,1157.2,0.26107954]
[1761554533943,2.1222922,1159.5,1157.2,0.26107954]
[1761554536047,0.15023474,1159.9,1157.2,0.26107954]
[1761554537243,0.15023474,1159.9,1157.3,1.334]
[1761554539844,3.12144384,1159.9,1157.3,1.334]
[1761554540047,2.1222922,1159.5,1157.3,1.334]
[1761554541646,2.1222922,1159.2,1157.3,1.334]
[1761554542647,2.9712091,1159.6,1157.3,1.334]
[1761554543043,2.1222922,1159.8,1157.3,1.334]
[1761554544245,0.15023474,1159.9,1157.3,1.334]
[1761554552556,2.1222922,1159.8,1157.3,1.334]
[1761554553056,2.1222922,1159.7,1157.3,1.334]
[1761554553456,0.15023474,1159.9,1157.3,1.334]
[1761554555057,0.15023474,1159.9,1157.4,0.57279558]
[1761554555256,0.15023474,1159.9,1157.3,1.334]
[1761554555455,0.15023474,1159.9,1157.4,0.57277735]
[1761554555657,0.15023474,1159.9,1157.5,0.187]
[1761554564868,2.1222922,1160.4,1157.5,0.187]
[1761554565563,2.1222922,1161.0,1157.5,0.187]
[1761554567469,2.1222922,1160.6,1157.5,0.187]
[1761554568072,2.1222922,1160.8,1157.5,0.187]
[1761554568373,0.15021269,1159.9,1157.5,0.187]
[1761554581084,2.27250489,1159.9,1157.5,0.187]
[1761554581583,2.1222922,1159.3,1157.5,0.187]
[1761554582685,2.1222922,1159.2,1157.5,0.187]
[1761554583079,2.1222922,1159.2,1157.6,1.694]
[1761554584582,5.0935013,1159.2,1157.6,1.694]
[1761554584884,2.1222922,1158.8,1157.6,1.694]
[1761554588485,5.0935013,1159.2,1157.6,1.694]
[1761554588688,2.9712091,1159.2,1157.6,1.694]
[1761554588883,4.2445844,1159.8,1157.6,1.694]
[1761554589781,6.3668766,1159.8,1157.6,1.694]
[1761554589987,2.1222922,1159.8,1157.6,1.694]
[1761554590282,2.1222922,1159.7,1157.6,1.694]
[1761554590585,2.1222922,1159.8,1157.6,1.694]
[1761554591086,2.1222922,1159.7,1157.6,1.694]
[1761554591280,2.1222922,1159.7,1157.7,0.57777047]
[1761554591486,2.1222922,1159.7,1157.6,1.694]
[1761554591782,2.1222922,1160.0,1157.7,0.57776567]
[1761554591988,2.1222922,1160.0,1157.6,1.694]
[1761554592284,2.1222922,1160.0,1157.7,0.57775858]
[1761554592585,2.1222922,1160.0,1157.6,1.694]
[1761554592783,2.1222922,1160.1,1157.7,0.57770968]
[1761554592989,2.1222922,1160.1,1157.6,1.694]
[1761554593189,0.15022372,1160.2,1157.7,0.57769232]
[1761554593382,0.15022372,1160.2,1157.8,0.57730838]
[1761554593585,0.15022372,1160.2,1157.9,0.57730838]
[1761554593887,2.1222922,1161.6,1158.0,0.57730838]
[1761554594085,0.15011453,1160.6,1157.6,1.694]
[1761554594284,0.15011453,1160.6,1157.7,0.57719048]
[1761554594488,2.1222922,1161.9,1157.8,0.57719048]
[1761554594685,0.15011291,1160.6,1157.9,0.57719048]
[1761554594888,0.15011291,1160.6,1158.0,0.57719048]
[1761554595089,2.1222922,1162.1,1158.1,0.57719048]
[1761554595386,0.15009672,1160.6,1157.6,1.694]
[1761554595590,2.1222922,1161.3,1157.7,0.57655384]
[1761554595787,0.15009025,1161.2,1157.8,0.57655384]
[1761554595990,0.15009025,1161.2,1157.9,0.57655384]
[1761554596187,2.1222922,1161.1,1158.0,0.57655384]
[1761554596487,2.1222922,1161.1,1158.1,0.57655384]
[1761554596686,2.1222922,1161.1,1158.2,0.57655384]
[1761554596986,2.1222922,1161.1,1157.6,2.34000797]
[1761554597190,2.1222922,1161.1,1157.7,0.62039089]
[1761554597490,2.1222922,1161.1,1157.8,0.62039089]
[1761554597690,2.1222922,1161.1,1157.9,0.62039089]
[1761554597893,2.1222922,1161.0,1158.0,0.62039089]
[1761554598090,2.1222922,1161.0,1157.7,0.64600797]
[1761554598290,2.1222922,1160.0,1157.8,0.61104012]
[1761554598490,2.1222922,1160.0,1157.6,1.694]
[1761554598687,2.1222922,1160.0,1157.7,0.61118041]
[1761554598888,2.1222922,1160.0,1157.8,0.61118041]
[1761554599190,2.1222922,1160.0,1157.6,1.694]
[1761554599491,2.1222922,1159.9,1157.7,0.60145959]
[1761554599691,2.1222922,1159.9,1157.8,0.60145959]
[1761554599886,2.1222922,1159.9,1157.6,1.694]
[1761554600186,2.1222922,1159.9,1157.7,0.59420973]
[1761554600386,2.1222922,1159.9,1157.6,1.694]
[1761554600590,2.1222922,1159.9,1157.7,0.59402498]
[1761554600789,2.1222922,1159.9,1157.6,1.694]
[1761554600988,2.1222922,1159.9,1157.7,0.59046549]
[1761554601189,2.1222922,1159.9,1157.6,1.694]
[1761554601390,2.1222922,1159.8,1157.7,0.59028347]
[1761554601591,2.1222922,1159.8,1157.6,1.694]
[1761554601792,2.1222922,1159.8,1157.7,0.59021856]
[1761554601987,2.1222922,1159.8,1157.6,1.694]
[1761554602893,2.1222922,1159.8,1157.7,0.189]
[1761554603192,2.1222922,1159.6,1157.7,0.189]
[1761554604592,2.1222922,1159.8,1157.7,0.189]
[1761554604791,2.1222922,1159.8,1157.8,0.58981659]
[1761554604997,2.1222922,1159.8,1157.7,0.189]
[1761554605290,2.1222922,1159.9,1157.8,0.58979507]
[1761554605494,2.1222922,1159.9,1157.9,0.58979507]
[1761554605695,2.1222922,1159.9,1157.7,0.189]
[1761554605893,2.1222922,1159.9,1157.8,0.58957744]
[1761554606196,2.1222922,1159.9,1157.9,0.58957744]
[1761554606395,2.1222922,1160.1,1158.0,0.58957744]
[1761554606696,2.1222922,1160.1,1157.7,0.83500797]
[1761554606896,2.1222922,1160.1,1157.8,0.63545381]
[1761554607095,2.1222922,1160.1,1157.9,0.63545381]
[1761554607291,2.1222922,1160.1,1158.0,0.63545381]
[1761554607496,2.1222922,1160.1,1157.7,0.83500797]
[1761554607792,2.1222922,1160.1,1157.8,0.63132502]
[1761554607992,2.1222922,1160.1,1157.9,0.63132502]
[1761554608191,2.1222922,1160.1,1158.0,0.63132502]
[1761554608392,2.1222922,1160.1,1157.7,0.83500797]
[1761554608592,2.1222922,1160.1,1157.8,0.63121218]
[1761554608796,2.1222922,1160.1,1157.9,0.63121218]
[1761554608990,2.1222922,1160.1,1158.0,0.63121218]
[1761554609197,2.1222922,1160.1,1157.7,0.83500797]
[1761554609393,2.1222922,1160.1,1157.8,0.63121195]
[1761554609593,2.1222922,1160.2,1157.9,0.63121195]
[1761554609897,2.1222922,1160.2,1158.0,0.63121195]
[1761554610097,2.1222922,1160.1,1157.7,0.83500797]
[1761554610397,2.1222922,1160.1,1157.8,0.6298624]
[1761554610593,2.1222922,1160.2,1157.9,1.8998624]
[1761554610795,2.1222922,1160.2,1158.0,0.6298624]
[1761554610992,2.1222922,1160.2,1157.9,1.27]
[1761554611195,2.1222922,1160.1,1158.0,0.62974937]
[1761554611395,2.1222922,1160.1,1157.9,1.27]
[1761554611698,2.1222922,1160.2,1158.0,0.62064962]
[1761554611898,2.1222922,1160.2,1157.9,1.27]
[1761554612094,2.1222922,1160.2,1158.0,0.62064962]
[1761554612294,2.1222922,1160.2,1157.9,1.27]
[1761554612495,2.1222922,1160.2,1158.0,0.6205615]
[1761554612698,2.1222922,1160.4,1157.9,1.27]
[1761554612994,2.1222922,1160.4,1158.0,0.62056141]
[1761554613198,2.1222922,1160.5,1157.9,1.27]
[1761554613398,2.1222922,1160.5,1158.0,0.61653059]
[1761554613598,2.1222922,1160.5,1157.9,1.27]
[1761554613795,2.1222922,1160.5,1158.0,0.61652114]
[1761554613994,2.1222922,1160.5,1157.9,1.27]
[1761554614199,2.1222922,1160.5,1158.0,0.61652138]
[1761554614500,2.1222922,1160.5,1157.9,1.27]
[1761554614694,2.1222922,1160.5,1158.0,0.61645224]
[1761554614895,2.1222922,1160.5,1157.9,1.27]
[1761554615195,2.1222922,1160.5,1158.0,0.61645224]
[1761554615400,2.1222922,1160.5,1157.9,1.27]
[1761554615600,2.1222922,1160.5,1158.0,0.6124193]
[1761554615800,2.1222922,1160.5,1157.9,1.27]
[1761554616098,2.1222922,1160.5,1158.0,0.61241913]
[1761554616299,2.1222922,1160.5,1157.9,1.27]
[1761554616498,2.1222922,1160.5,1158.0,0.61161619]
[1761554616699,2.1222922,1160.5,1157.9,1.27]
[1761554616897,2.1222922,1160.6,1158.0,0.6107488]
[1761554617102,2.1222922,1160.6,1157.9,1.27]
[1761554617297,2.1222922,1160.6,1158.0,0.6107436]
[1761554617497,2.1222922,1160.7,1157.9,1.27]
[1761554617803,2.1222922,1160.7,1158.0,0.61069768]
[1761554617997,2.1222922,1160.7,1157.9,1.27]
[1761554618297,2.1222922,1160.7,1158.0,0.6110511]
[1761554618498,2.1222922,1160.7,1157.9,1.27]
[1761554618701,2.1222922,1160.7,1158.0,0.61101111]
[1761554618904,3.12129935,1161.2,1158.1,0.61101024]
[1761554619102,0.15009025,1161.2,1157.9,1.27]
[1761554619303,0.15009025,1161.2,1158.0,0.61099313]
[1761554619498,0.15009025,1161.2,1158.1,0.61099313]
[1761554619700,0.15009025,1161.2,1157.9,1.27]
[1761554619906,0.15009025,1161.2,1158.0,0.6102008]
[1761554620203,0.15009025,1161.2,1158.1,0.6102008]
[1761554620401,0.15009025,1161.2,1157.9,1.27]
[1761554620700,0.15009025,1161.2,1158.0,0.6100443]
[1761554620906,0.15009025,1161.2,1158.1,0.6100443]
[1761554621104,0.15009025,1161.2,1158.2,0.6100443]
[1761554621301,0.15009025,1161.2,1158.3,0.6100443]
[1761554621505,0.15009025,1161.2,1158.4,0.6490975]
[1761554621802,0.15009025,1161.2,1158.5,0.6490975]
[1761554622002,0.15009025,1161.2,1157.9,1.91600797]
[1761554622203,0.15009025,1161.2,1158.0,0.64907083]
[1761554622407,0.15009025,1161.2,1158.1,0.64907083]
[1761554622604,0.15009025,1161.2,1158.2,0.64907083]
[1761554622808,0.15009025,1161.2,1158.3,0.64907083]
[1761554623008,0.15009025,1161.2,1158.4,0.64907083]
[1761554623206,0.15009025,1161.2,1158.5,0.64907083]
[1761554623406,0.15009025,1161.2,1158.6,0.64907083]
[1761554623709,0.15009025,1161.2,1158.7,0.67234322]
[1761554623907,0.15009025,1161.2,1158.1,0.64600797]
[1761554624110,0.15009025,1161.2,1158.2,0.67234338]
[1761554624305,0.15009025,1161.2,1158.3,0.67234338]
[1761554624506,0.15009025,1161.2,1158.4,0.67234338]
[1761554624704,0.15009025,1161.2,1158.5,0.67234338]
[1761554624908,0.15009025,1161.2,1158.6,0.67234338]
[1761554625106,0.15009025,1161.2,1158.2,0.64600797]
[1761554625305,0.15009025,1161.2,1158.3,0.67217956]
[1761554625509,0.15009025,1161.2,1158.4,0.67217956]
[1761554625707,0.15009025,1161.2,1158.5,0.67217956]
[1761554625910,0.15009025,1161.2,1158.6,0.67217956]
[1761554626108,0.15009025,1161.2,1158.7,0.67217956]
[1761554626308,0.15009025,1161.2,1158.8,0.67217956]
[1761554626512,0.15009025,1161.2,1158.1,0.64600797]
[1761554626709,0.15009025,1161.2,1158.2,0.69386975]
[1761554627011,0.15009025,1161.2,1158.3,0.69386975]
[1761554627311,0.15009025,1161.2,1158.4,2.08886975]
[1761554627510,0.15009025,1161.2,1158.4,1.395]
[1761554627709,2.13925744,1160.8,1158.4,1.395]
[1761554628210,2.13925744,1161.0,1158.4,1.395]
[1761554630715,2.13925744,1160.9,1158.4,1.395]
[1761554631922,2.13925744,1160.5,1158.4,1.395]
[1761554634623,2.13925744,1160.4,1158.4,1.395]
[1761554636020,2.13925744,1160.6,1158.4,1.395]
[1761554636423,2.13925744,1159.3,1158.4,1.395]
[1761554637921,2.13925744,1160.1,1158.4,1.395]
[1761554638420,2.13925744,1160.1,1158.4,0.39184532]
[1761554638621,2.13925744,1159.5,1158.4,0.39184532]
[1761554639120,2.13925744,1159.6,1158.4,0.39184532]
[1761554639524,2.13925744,1159.7,1158.4,0.39184532]
[1761554640021,2.13925744,1159.9,1158.4,0.39184532]
[1761554640622,2.13925744,1160.0,1158.4,0.39184532]
[1761554641222,2.13925744,1160.9,1158.4,0.39184532]
[1761554641625,0.15009025,1161.2,1158.4,0.39184532]
[1761554642124,2.28934769,1161.2,1158.4,0.39184532]
[1761554642526,2.13925744,1160.5,1158.4,0.39184532]
[1761554642927,2.13925744,1160.6,1158.4,0.39184532]
[1761554643527,2.13925744,1159.8,1158.4,0.39184532]
[1761554644028,2.9949059,1160.2,1158.4,0.39184532]
[1761554644626,0.15009025,1161.2,1158.4,0.39184532]
[1761554646427,2.13925744,1159.6,1158.4,0.39184532]
[1761554646725,2.13925744,1159.7,1158.4,0.39184532]
[1761554647228,2.13925744,1159.5,1158.4,0.39184532]
[1761554647825,2.13925744,1159.7,1158.4,0.39184532]
[1761554648227,2.9949059,1160.1,1158.4,0.39184532]
[1761554648830,2.13925744,1160.8,1158.4,0.39184532]
[1761554649331,2.13925744,1160.9,1158.4,0.39184532]
[1761554649930,2.13925744,1159.9,1158.4,0.39184532]
[1761554650330,2.13925744,1160.0,1158.4,0.39184532]
[1761554650528,2.13925744,1160.0,1158.5,0.19]
[1761554650733,2.9949059,1160.4,1158.5,0.19]
[1761554650930,2.13925744,1161.1,1158.5,0.19]
[1761554652029,2.13925744,1160.7,1158.5,0.19]
[1761554652328,2.13925744,1160.8,1158.5,0.19]
[1761554655037,2.13925744,1159.9,1158.5,0.19]
[1761554655233,2.9949059,1160.4,1158.5,0.19]
[1761554655234,2.13925744,1160.3,1158.5,0.19]
[1761554655733,2.13925744,1160.4,1158.5,0.19]
[1761554657335,2.13925744,1160.5,1158.5,0.19]
[1761554658236,2.13925744,1159.9,1158.5,0.19]
[1761554658835,0.15009025,1161.2,1158.5,0.19]
[1761554658836,2.13925744,1161.0,1158.5,0.19]
[1761554659741,2.13925744,1161.1,1158.5,0.19]
[1761554660541,2.13925744,1161.1,1158.6,1.427]
[1761554662038,0.15009025,1161.2,1158.6,1.427]
[1761554662543,2.13925744,1160.8,1158.6,1.427]
[1761554664541,0.15009025,1161.2,1158.6,1.427]
[1761554669140,2.13925744,1160.2,1158.6,1.427]
[1761554670141,2.13925744,1160.1,1158.6,1.427]
[1761554670742,2.13925744,1160.2,1158.6,1.427]
[1761554671343,2.13925744,1160.3,1158.7,0.191]
[1761554671741,2.13925744,1160.1,1158.7,0.191]
[1761554672244,2.13925744,1159.7,1158.7,0.191]
[1761554672642,2.13925744,1160.3,1158.7,0.191]
[1761554673747,2.13925744,1160.6,1158.7,0.191]
[1761554674344,2.13925744,1159.4,1158.7,0.191]
[1761554674745,2.13925744,1159.4,1158.7,0.05040146]
[1761554679050,2.13925744,1159.5,1158.7,0.05040146]
[1761554679950,2.13925744,1160.3,1158.7,0.05040146]
[1761554681950,2.13925744,1160.5,1158.7,0.05040146]
[1761554684550,2.13925744,1160.4,1158.7,0.05040146]
[1761554685152,2.13925744,1160.5,1158.7,0.05040146]
[1761554685550,2.13925744,1160.4,1158.7,0.05040146]
[1761554686853,2.13925744,1160.3,1158.7,0.05040146]
[1761554687655,2.13925744,1159.7,1158.7,0.05040146]
[1761554689258,2.13925744,1159.6,1158.7,0.05040146]
[1761554690457,2.13925744,1159.5,1158.7,0.05040146]
[1761554691854,2.13925744,1159.4,1158.7,0.05040146]
[1761554692255,2.13925744,1159.4,1158.7,0.01331358]
[1761554692454,2.13925744,1159.3,1158.7,0.01331358]
[1761554693557,2.13925744,1159.6,1158.7,0.01331358]
[1761554693960,2.9949059,1160.0,1158.7,0.01331358]
[1761554694559,4.2445844,1160.8,1158.7,0.01331358]
[1761554695658,2.13925744,1160.9,1158.7,0.01331358]
[1761554697165,2.13925744,1160.8,1158.7,0.01331358]
[1761554698060,2.13925744,1160.7,1158.7,0.01331358]
[1761554698661,2.13925744,1159.8,1158.7,0.01331358]
[1761554699064,2.13925744,1159.7,1158.7,0.01331358]
[1761554701166,2.13925744,1159.7,1158.7,0.00322231]
[1761554701366,2.13925744,1159.1,1158.7,0.00322231]
[1761554701763,2.13925744,1159.0,1158.7,0.00322231]
[1761554702367,2.13925744,1159.0,1157.8,1.412]
[1761554703866,2.13925744,1158.8,1157.8,1.412]
[1761554705974,2.13925744,1159.1,1157.8,1.412]
[1761554706568,2.13925744,1159.0,1157.8,1.412]
[1761554707167,2.13925744,1159.1,1157.8,1.412]
[1761554708173,2.13925744,1160.2,1157.8,1.412]
[1761554708673,2.13925744,1160.1,1157.8,1.412]
[1761554709075,2.13925744,1159.8,1157.8,1.412]
[1761554710169,2.13925744,1159.6,1157.8,1.412]
[1761554710672,2.13925744,1159.1,1157.8,1.412]
[1761554711272,2.13925744,1158.6,1157.8,1.412]
[1761554712173,0.15009025,1161.2,1157.8,1.412]
[1761554712174,2.13925744,1158.9,1157.8,1.412]
[1761554712670,2.13925744,1159.1,1157.8,1.412]
[1761554713977,2.13925744,1158.7,1157.8,1.412]
[1761554714379,2.13925744,1158.8,1157.8,1.412]
[1761554715379,2.13925744,1158.6,1157.8,1.412]
[1761554715979,2.13925744,1158.7,1157.8,1.412]
[1761554717381,2.13925744,1158.8,1157.8,1.412]
[1761554721781,2.13925744,1158.6,1157.8,1.412]
[1761554726484,2.13925744,1158.7,1157.8,1.412]
[1761554728183,2.13925744,1158.7,1157.8,0.30496152]
[1761554729090,2.13925744,1158.6,1157.8,0.30496152]
[1761554729486,2.13925744,1158.7,1157.8,0.30496152]
[1761554730186,4.2445844,1159.7,1157.8,0.30496152]
[1761554730987,2.13925744,1160.7,1157.8,0.30496152]
[1761554731592,2.13925744,1160.9,1157.8,0.30496152]
[1761554732595,2.13925744,1159.9,1157.8,0.30496152]
[1761554733989,2.13925744,1158.5,1157.8,0.30496152]
[1761554734595,2.13925744,1158.7,1157.8,0.30496152]
[1761554734991,2.13925744,1158.6,1157.8,0.30496152]
[1761554736097,2.13925744,1158.6,1156.2,0.15030742]
[1761554736596,2.13925744,1158.7,1156.2,0.15030742]
[1761554738199,2.13925744,1158.6,1156.2,0.15030742]
[1761554738700,2.13925744,1158.5,1156.2,0.15030742]
[1761554740804,2.13925744,1158.5,1156.3,1.252]
[1761554741801,2.13925744,1158.8,1156.3,1.252]
[1761554743402,2.13925744,1158.9,1156.3,1.252]
[1761554745901,2.13925744,1159.0,1156.3,1.252]
[1761554746402,2.13925744,1158.9,1156.3,1.252]
[1761554750110,2.13925744,1159.0,1156.3,1.252]
[1761554750613,2.13925744,1158.9,1156.3,1.252]
[1761554752812,2.13925744,1158.8,1156.2,0.15030742]
[1761554753113,2.13925744,1158.8,1156.3,0.56435492]
[1761554753415,2.9949059,1159.4,1156.4,0.56435494]
[1761554753615,2.9949059,1159.4,1156.2,0.15030742]